[Event "9th RTU Rapid 2019"]
[Site "Riga"]
[Date "2019.08.04"]
[Round "9.30"]
[White "Kretainis, Kristaps"]
[Black "Isakovs, Janis"]
[Result "1-0"]
[ECO "B01"]
[WhiteElo "2252"]
[BlackElo "1923"]
[Annotator "NA"]
[PlyCount "82"]
[EventDate "2019.08.05"]
[EventType "swiss"]
[EventCountry "LAT"]
[SourceTitle "playchess.com"]
[Source "ChessBase"]
[SourceQuality "1"]
[TimeControl "5400+30"]

1. e4 {[%emt 1:15:23]} d5 {[%emt 0:00:21]} 2. exd5 {[%emt 0:00:02]} Qxd5 3. Nf3 Bg4 {[%emt 0:00:09]} 4. Be2 Nf6 {[%emt 0:00:03]} 5. d4 {[%emt 0:00:01]} e6 {[%emt 1:17:12]} 6. O-O {[%emt 0:02:11]} Be7 {[%emt 0:00:36]} 7. c4 {[%emt 0:00:26]} Qd8 {[%emt 0:00:38]} 8. Qb3 {[%emt 0:00:30]} b6 {[%emt 0:01:21]} 9. Nc3 {[%emt 0:00:41]} O-O {[%emt 0:00:32]} 10. h3 {[%emt 0:00:31]} Bh5 {[%emt 0:00:48]} 11. Be3 {[%emt 0:00:33]} Nbd7 {[%emt 0:01:10]} 12. Rfd1 {[%emt 0:00:30]} Qc8 {[%emt 0:01:32]} 13. a4 {[%emt 0:00:45]} a5 {[%emt 0:00:31]} 14. Bf4 {[%emt 0:00:37]} Bd6 {[%emt 0:01:01]} 15. Bxd6 {[%emt 0:00:17]} cxd6 {[%emt 0:00:01]} 16. Nb5 {[%emt 0:00:51]} Qb8 {[%emt 0:01:49]} 17. Qa3 {[%emt 0:00:40]} d5 {[%emt 0:00:35]} 18. c5 {[%emt 0:00:42]} bxc5 {[%emt 0:01:04]} 19. dxc5 Rc8 {[%emt 0:01:13]} 20. Rac1 {[%emt 0:00:52]} Bxf3 {[%emt 0:03:08]} 21. Bxf3 {[%emt 0:00:27]} Ne5 {[%emt 0:00:28]} 22. Be2 {[%emt 0:00:27]} Nc6 {[%emt 0:00:38]} 23. Nd6 {[%emt 0:00:02]} Rc7 {[%emt 0:00:51]} 24. Bb5 {[%emt 0:00:52]} Nb4 {[%emt 0:02:13]} 25. Qg3 {[%emt 0:01:22]} Qa7 {[%emt 0:01:23]} 26. c6 {[%emt 0:00:41]} Rd8 {[%emt 0:01:05]} 27. Rc3 {[%emt 0:02:51]} g6 {[%emt 0:01:17]} 28. Qe5 {[%emt 0:00:57]} Ne8 {[%emt 0:00:47]} 29. Nxe8 {[%emt 0:00:42]} Rxe8 {[%emt 0:00:01]} 30. h4 {[%emt 0:00:51]} f5 {[%emt 0:02:21]} 31. h5 {[%emt 0:00:36]} Rg7 {[%emt 0:00:35]} 32. h6 {[%emt 0:00:02]} Rc7 {[%emt 0:00:02]} 33. Qd6 {[%emt 0:02:08]} Ree7 {[%emt 0:00:52]} 34. Re1 {[%emt 0:00:45]} Kf7 {[%emt 0:00:28]} 35. Qe5 {[%emt 0:01:08]} Kg8 36. Qf6 {[%emt 0:00:55]} d4 {[%emt 0:01:00]} 37. Rg3 {[%emt 0:00:33]} Nd5 {[%emt 0:00:28]} 38. Qe5 {[%emt 0:00:34]} Qc5 {[%emt 0:00:36]} 39. Rd3 {[%emt 0:00:32]} Qb4 {[%emt 0:00:31]} 40. Rxd4 {[%emt 0:00:02]} Qxb2 {[%emt 0:00:01]} 41. Rxd5 {[%emt 0:00:59]} Qb3 {[%emt 0:00:10]} 1-0

[Event "9th RTU Rapid 2019"]
[Site "Riga"]
[Date "2019.08.04"]
[Round "9.31"]
[White "Ivanisvili, Andrejs"]
[Black "Pavlovs, Nikita"]
[Result "0-1"]
[ECO "B06"]
[WhiteElo "2144"]
[BlackElo "1845"]
[Annotator "NA"]
[PlyCount "46"]
[EventDate "2019.08.05"]
[EventType "swiss"]
[EventCountry "LAT"]
[SourceTitle "playchess.com"]
[Source "ChessBase"]
[SourceQuality "1"]
[TimeControl "5400+30"]

1. g3 {[%emt 1:15:24]} g6 {[%emt 1:15:23]} 2. Bg2 {[%emt 0:00:26]} Bg7 {[%emt 0:00:26]} 3. e4 {[%emt 0:00:36]} d6 {[%emt 0:00:27]} 4. d4 {[%emt 0:00:32]} Nf6 {[%emt 0:00:28]} 5. Ne2 {[%emt 0:00:37]} O-O {[%emt 0:00:30]} 6. O-O {[%emt 0:00:41]} c6 {[%emt 0:00:32]} 7. h3 {[%emt 0:00:37]} Nbd7 {[%emt 0:00:31]} 8. c3 {[%emt 0:00:55]} e5 {[%emt 0:00:30]} 9. f4 {[%emt 0:00:36]} Qc7 {[%emt 0:01:00]} 10. Be3 {[%emt 0:01:03]} a6 {[%emt 0:00:33]} 11. Nd2 {[%emt 0:00:50]} b5 {[%emt 0:00:28]} 12. a4 {[%emt 0:01:04]} Bb7 {[%emt 0:00:27]} 13. Qc2 {[%emt 0:01:17]} Rfe8 {[%emt 0:00:32]} 14. c4 {[%emt 0:00:58]} bxc4 {[%emt 0:05:49]} 15. Nxc4 {[%emt 0:04:39]} exd4 {[%emt 0:01:21]} 16. Bxd4 {[%emt 0:00:34]} c5 {[%emt 0:01:46]} 17. Nxd6 {[%emt 0:03:31]} Qxd6 {[%emt 0:01:03]} 18. e5 {[%emt 0:00:26]} Qb6 {[%emt 0:00:47]} 19. a5 {[%emt 0:01:15]} Qa7 {[%emt 0:00:40]} 20. exf6 {[%emt 0:02:26]} cxd4 {[%emt 0:00:42]} 21. Rf2 {[%emt 0:01:32]} Nxf6 {[%emt 0:01:09]} 22. Rd1 {[%emt 0:00:34]} Ne4 {[%emt 0:00:51]} 23. Rf3 {[%emt 0:00:37]} d3+ {[%emt 0:00:35]} 0-1